bitfinex/quotes_BTCUSD_20240719
["timestamp","ask_amount","ask_price","bid_price","bid_amount"]
[1721395443417,1.39060429,64259.0,64258.0,0.07717479]
[1721395443736,1.07938907,64259.0,64258.0,0.07717479]
[1721395444299,1.04941215,64259.0,64258.0,0.07717479]
[1721395445139,1.14233419,64259.0,64258.0,0.07717479]
[1721395445487,1.04941215,64259.0,64258.0,0.07717479]
[1721395445871,1.61206291,64259.0,64258.0,0.07717479]
[1721395446287,1.49577902,64259.0,64258.0,0.07717479]
[1721395447573,1.49577902,64259.0,64258.0,4.13e-06]
[1721395448943,1.49577902,64259.0,64247.0,0.07717479]
[1721395448944,0.1401,64258.0,64247.0,0.07717479]
[1721395449143,0.94704368,64248.0,64247.0,0.07717479]
[1721395449345,1.76913776,64248.0,64247.0,0.07717479]
[1721395449544,1.76853051,64248.0,64247.0,0.07717479]
[1721395450535,1.00884451,64248.0,64247.0,0.07717479]
[1721395450734,0.47221677,64248.0,64247.0,0.22317479]
[1721395450941,0.33603049,64248.0,64247.0,0.22317479]
[1721395451182,0.36403049,64248.0,64247.0,0.22317479]
[1721395451456,0.36403049,64248.0,64247.0,0.69012179]
[1721395451457,0.24795734,64248.0,64247.0,0.69012179]
[1721395451631,0.30384534,64248.0,64247.0,1.00141979]
[1721395451775,0.10132987,64248.0,64247.0,1.00141979]
[1721395451987,0.22444298,64248.0,64247.0,0.69012179]
[1721395452200,0.19455774,64248.0,64247.0,0.69012179]
[1721395452405,0.21052175,64248.0,64247.0,0.69012179]
[1721395453024,0.21052175,64248.0,64247.0,0.22317479]
[1721395453025,0.29440787,64248.0,64247.0,0.22317479]
[1721395453230,0.40279997,64248.0,64247.0,0.07717479]
[1721395453461,0.71395125,64248.0,64247.0,0.07717479]
[1721395453680,0.69995125,64248.0,64247.0,0.07717479]
[1721395454023,0.70995125,64248.0,64247.0,0.07717479]
[1721395454223,1.17562599,64248.0,64247.0,0.07717479]
[1721395454532,1.17962599,64248.0,64247.0,0.07717479]
[1721395455513,1.17726655,64248.0,64247.0,0.07717479]
[1721395455713,1.19126655,64248.0,64247.0,0.07717479]
[1721395456068,1.20526655,64248.0,64247.0,0.07717479]
[1721395457395,1.16326655,64248.0,64247.0,0.07717479]
[1721395457592,1.19126655,64248.0,64247.0,0.07717479]
[1721395458445,1.17726655,64248.0,64247.0,0.07717479]
[1721395458653,1.48719878,64248.0,64247.0,0.07717479]
[1721395458803,1.50119878,64248.0,64247.0,0.07717479]
[1721395459970,1.51519878,64248.0,64247.0,0.07717479]
[1721395460516,1.18990578,64248.0,64247.0,0.07717479]
[1721395460839,1.51519878,64248.0,64247.0,0.07717479]
[1721395461037,1.48719878,64248.0,64247.0,0.07717479]
[1721395462174,1.4074818,64248.0,64247.0,0.07717479]
[1721395462407,1.48736218,64248.0,64247.0,0.07717479]
[1721395462551,1.17284704,64248.0,64247.0,0.07717479]
[1721395463063,0.467005,64239.0,64238.0,0.000913]
[1721395463246,1.00936903,64239.0,64238.0,0.000913]
[1721395463452,1.21154219,64239.0,64238.0,0.000913]
[1721395463652,1.09510367,64239.0,64238.0,0.000913]
[1721395463995,1.24948541,64239.0,64238.0,0.000913]
[1721395464170,1.71446318,64239.0,64238.0,0.000913]
[1721395464813,1.53471608,64239.0,64238.0,0.000913]
[1721395465011,1.71939321,64239.0,64238.0,0.000913]
[1721395465442,1.25370664,64239.0,64238.0,0.000913]
[1721395465979,1.26770664,64239.0,64238.0,0.000913]
[1721395466187,0.95636964,64239.0,64238.0,0.000913]
[1721395466577,0.3349829,64239.0,64238.0,0.000913]
[1721395466820,0.3349829,64239.0,64238.0,0.235684]
[1721395466821,0.20493941,64239.0,64238.0,0.235684]
[1721395467021,0.13511079,64239.0,64238.0,0.146313]
[1721395467194,0.10155905,64239.0,64238.0,0.146313]
[1721395467400,0.10155905,64239.0,64238.0,0.613326]
[1721395467598,0.10155905,64239.0,64238.0,0.924668]
[1721395467599,0.05500816,64239.0,64238.0,0.924668]
[1721395467842,0.05500816,64239.0,64238.0,0.613326]
[1721395468066,0.05513351,64239.0,64238.0,0.613326]
[1721395468283,0.05513351,64239.0,64238.0,0.924668]
[1721395469980,0.05513351,64239.0,64238.0,0.613326]
[1721395470107,0.05513351,64239.0,64238.0,0.146313]
[1721395470543,0.05513351,64239.0,64238.0,0.301984]
[1721395470947,0.025,64239.0,64238.0,0.613326]
[1721395471147,0.05521292,64239.0,64238.0,0.613326]
[1721395472449,0.05521292,64239.0,64238.0,0.924668]
[1721395474185,0.05521292,64239.0,64238.0,0.613326]
[1721395474186,0.0552789,64239.0,64238.0,0.613326]
[1721395474734,0.0552789,64239.0,64238.0,0.924668]
[1721395475704,0.13799494,64239.0,64238.0,0.924668]
[1721395476138,0.13799494,64239.0,64238.0,0.146313]
[1721395476343,0.18455681,64239.0,64238.0,0.146313]
[1721395476573,0.18455681,64239.0,64238.0,0.067213]
[1721395476775,1.40423222,64239.0,64238.0,0.000913]
[1721395476926,1.42197342,64239.0,64238.0,0.000913]
[1721395477193,1.5396167,64239.0,64238.0,0.000913]
[1721395477392,1.84356096,64239.0,64238.0,0.000913]
[1721395477601,1.83256096,64239.0,64238.0,0.000913]
[1721395477795,1.54733677,64239.0,64238.0,0.000913]
[1721395477970,1.78293677,64239.0,64238.0,0.000913]
[1721395478337,2.08227377,64239.0,64238.0,0.000913]
[1721395478535,1.77093677,64239.0,64238.0,5e-08]
[1721395478747,1.90867794,64239.0,64238.0,5e-08]
[1721395478947,2.23401494,64239.0,64238.0,5e-08]
[1721395479151,2.18173416,64239.0,64238.0,5e-08]
[1721395479353,2.28173416,64239.0,64238.0,5e-08]
[1721395480164,2.15464438,64239.0,64238.0,5e-08]
[1721395480405,2.40501263,64239.0,64238.0,5e-08]
[1721395483139,2.28657596,64239.0,64238.0,5e-08]
[1721395483360,1.90304438,64239.0,64238.0,5e-08]
[1721395483563,2.28805178,64239.0,64238.0,5e-08]
[1721395484042,2.28889503,64239.0,64238.0,5e-08]
[1721395484692,2.28889503,64239.0,64230.0,0.07717479]
[1721395484693,1.229916,64231.0,64230.0,0.07717479]
[1721395485225,2.16076047,64231.0,64230.0,0.07717479]
[1721395485426,2.27738606,64231.0,64230.0,0.07717479]
[1721395485662,2.13758976,64231.0,64230.0,0.07717479]
[1721395485776,2.02017881,64231.0,64230.0,0.07717479]
[1721395485975,1.33562681,64231.0,64230.0,0.07717479]
[1721395486180,1.25732681,64231.0,64230.0,0.07717479]
[1721395486440,1.53643498,64231.0,64230.0,0.07717479]
[1721395486639,1.56443703,64231.0,64230.0,0.07717479]
[1721395487700,1.57843703,64231.0,64230.0,0.07717479]
[1721395488107,1.56443703,64231.0,64230.0,0.07717479]
[1721395488311,1.57843703,64231.0,64230.0,0.07717479]
[1721395489324,1.88981303,64231.0,64230.0,0.07717479]
[1721395489527,1.66862862,64231.0,64230.0,0.07717479]
[1721395489736,1.74649042,64231.0,64230.0,0.07717479]
[1721395489946,1.59214085,64231.0,64230.0,0.07717479]
[1721395490562,1.57814085,64231.0,64230.0,0.07717479]
[1721395490771,1.60272624,64231.0,64230.0,0.07717479]
[1721395490970,1.58872624,64231.0,64230.0,0.07717479]
[1721395491176,1.74307581,64231.0,64230.0,0.07717479]
[1721395491379,1.72907581,64231.0,64230.0,0.07717479]
[1721395491579,1.74307581,64231.0,64230.0,0.07717479]
[1721395491788,2.05445181,64231.0,64230.0,0.07717479]
[1721395492129,2.06845181,64231.0,64230.0,0.07717479]
[1721395492540,2.05003608,64231.0,64230.0,0.07717479]
[1721395492747,2.06878821,64231.0,64230.0,0.07717479]
[1721395492969,1.91443864,64231.0,64230.0,0.07717479]
[1721395493176,1.90043864,64231.0,64230.0,0.07717479]
[1721395493394,0.3326409,64231.0,64230.0,1.00132479]
[1721395493610,0.0585047,64231.0,64230.0,0.68994479]
[1721395493826,0.0585047,64231.0,64230.0,0.22287479]
[1721395494027,0.0585047,64231.0,64230.0,0.37856479]
[1721395494237,0.0445047,64231.0,64230.0,0.37856479]
[1721395494660,0.0445047,64231.0,64230.0,0.68994479]
[1721395494661,0.0585047,64231.0,64230.0,0.68994479]
[1721395495072,0.0445047,64231.0,64230.0,0.37856479]
[1721395495301,0.0585047,64231.0,64230.0,0.37856479]
[1721395495533,0.0695047,64231.0,64230.0,0.37856479]
[1721395495776,0.06958885,64231.0,64230.0,0.68994479]
[1721395496003,0.06958885,64231.0,64230.0,0.69085779]
[1721395496240,0.06958885,64231.0,64230.0,0.22378779]
[1721395496469,0.04158885,64231.0,64230.0,0.37947779]
[1721395496688,0.04158885,64231.0,64230.0,0.69085779]
[1721395497326,0.05558885,64231.0,64230.0,0.69085779]
[1721395498873,0.05555363,64231.0,64230.0,1.31361779]
[1721395499115,0.05555363,64231.0,64230.0,0.146613]
[1721395499332,0.05555363,64231.0,64230.0,0.302303]
[1721395500160,0.05555363,64231.0,64230.0,0.063413]
[1721395500367,0.97586667,64231.0,64230.0,0.000913]
[1721395500608,1.26065176,64231.0,64230.0,0.000913]
[1721395500819,0.48221176,64231.0,64230.0,0.000913]
[1721395501028,0.32783002,64231.0,64230.0,0.142913]
[1721395501230,0.32417954,64231.0,64230.0,0.609983]
[1721395501456,0.32417954,64231.0,64230.0,0.921363]
[1721395501457,0.05551314,64231.0,64230.0,0.921363]
[1721395501665,0.04151314,64231.0,64230.0,0.921363]
[1721395502112,0.04151314,64231.0,64230.0,0.142913]
[1721395502314,0.03051314,64231.0,64230.0,0.142913]
[1721395502730,0.17265147,64231.0,64230.0,0.142913]
[1721395502937,0.17265147,64231.0,64230.0,0.298603]
[1721395503182,0.18665147,64231.0,64230.0,0.142913]
[1721395503358,0.13079986,64231.0,64230.0,0.142913]
[1721395503765,0.11679986,64231.0,64230.0,0.142913]
[1721395503917,0.37766392,64231.0,64230.0,0.142913]
[1721395504136,0.34028637,64231.0,64230.0,0.142913]
[1721395504364,0.38792696,64231.0,64230.0,0.142913]
[1721395504801,0.14190617,64231.0,64230.0,0.142913]
[1721395504993,0.16844383,64231.0,64230.0,0.142913]
[1721395505245,0.38852184,64231.0,64230.0,0.142913]
[1721395505449,0.2117751,64231.0,64230.0,0.142913]
[1721395506043,0.11620321,64231.0,64230.0,0.142913]
[1721395506452,0.13821902,64231.0,64230.0,0.142913]
[1721395506892,0.20809241,64231.0,64230.0,0.142913]
[1721395507128,0.20809241,64231.0,64230.0,0.609983]
[1721395507129,0.17767322,64231.0,64230.0,0.609983]
[1721395507356,0.17767322,64231.0,64230.0,0.921363]
[1721395507357,0.11622366,64231.0,64230.0,0.921363]
[1721395507590,0.039,64231.0,64230.0,0.921363]
[1721395507806,0.06963899,64231.0,64230.0,0.921363]
[1721395509112,0.06963899,64231.0,64230.0,1.232743]
[1721395509530,0.039,64231.0,64230.0,1.69850474]
[1721395509841,0.039,64231.0,64230.0,2.14735125]
[1721395510052,0.028,64231.0,64230.0,2.14735156]
[1721395510278,0.00083,64235.0,64234.0,1.401124]
[1721395510504,0.00083,64235.0,64234.0,2.00966674]
[1721395510704,0.00083,64235.0,64234.0,1.79830574]
[1721395511349,0.00083,64235.0,64234.0,1.332563]
[1721395511548,0.00083,64235.0,64234.0,1.232563]
[1721395511549,0.00283,64235.0,64234.0,1.232563]
[1721395512040,0.00283,64235.0,64234.0,0.609841]
[1721395512448,0.00283,64235.0,64234.0,0.921202]
[1721395513066,0.00083,64235.0,64234.0,0.921202]
[1721395513266,0.00283,64235.0,64234.0,0.925202]
[1721395513473,0.00283,64235.0,64234.0,1.39094474]
[1721395513677,0.00283,64235.0,64234.0,1.38994474]
[1721395513678,0.00183,64235.0,64234.0,1.38994474]
[1721395513877,0.00183,64235.0,64234.0,1.38694474]
[1721395513878,0.00083,64235.0,64234.0,1.38694474]
[1721395514091,0.00483,64235.0,64234.0,1.38694474]
[1721395514734,0.00583,64235.0,64234.0,1.38694474]
[1721395514944,0.00183,64235.0,64234.0,0.921202]
[1721395515144,0.03243601,64235.0,64234.0,0.921202]
[1721395515938,0.03252028,64235.0,64234.0,0.921202]
[1721395516140,0.00083,64235.0,64234.0,0.921202]
[1721395516540,0.00183,64235.0,64234.0,1.234563]
[1721395517339,0.00083,64235.0,64234.0,1.232563]
[1721395517530,0.00483,64235.0,64234.0,1.232563]
[1721395517868,0.00083,64235.0,64234.0,1.232563]
[1721395518089,0.00483,64235.0,64234.0,1.232563]
[1721395519570,0.00483,64235.0,64234.0,1.38694474]
[1721395521076,0.00083,64235.0,64234.0,1.38694474]
[1721395521280,0.00083,64235.0,64234.0,0.921202]
[1721395521482,0.00483,64235.0,64234.0,0.921202]
[1721395521705,0.00483,64235.0,64234.0,1.232563]
[1721395521904,0.00483,64235.0,64234.0,1.38694474]
[1721395521905,0.00083,64235.0,64234.0,1.38694474]
[1721395522310,0.00083,64235.0,64234.0,1.79830574]
[1721395522514,0.00083,64235.0,64234.0,1.48694474]
[1721395522721,0.00183,64235.0,64234.0,1.79830574]
[1721395523078,0.00283,64235.0,64234.0,1.80030574]
[1721395523299,0.00283,64235.0,64234.0,1.48894474]
[1721395523658,0.00183,64235.0,64234.0,1.48694474]
[1721395524127,0.00183,64235.0,64234.0,1.48894474]
[1721395524506,0.00183,64235.0,64234.0,1.48694474]
[1721395524709,0.00183,64235.0,64234.0,1.332563]
[1721395525249,0.00283,64235.0,64234.0,1.332563]
[1721395525430,0.00083,64235.0,64234.0,1.332563]
[1721395525812,0.00183,64235.0,64234.0,1.332563]
[1721395526180,0.00283,64235.0,64234.0,1.334563]
[1721395526595,0.00283,64235.0,64234.0,1.48894474]
[1721395526788,0.00183,64235.0,64234.0,1.48694474]
[1721395527296,0.00183,64235.0,64234.0,1.80030574]
[1721395527762,0.00183,64235.0,64234.0,1.79830574]
[1721395528020,0.00083,64235.0,64234.0,1.79830574]
[1721395528243,0.00283,64235.0,64234.0,1.80030574]
[1721395528470,0.00183,64235.0,64234.0,1.98720574]
[1721395528685,0.00083,64259.0,64258.0,0.921812]
[1721395529066,0.00083,64259.0,64258.0,1.233057]
[1721395530895,0.00783,64259.0,64258.0,1.233057]
[1721395531163,0.00783,64259.0,64258.0,0.466867]
[1721395531164,0.01883,64259.0,64258.0,0.466867]
[1721395531414,0.01883,64259.0,64258.0,0.16416358]
[1721395532373,0.01883,64259.0,64258.0,0.55258337]
[1721395533371,0.01883,64259.0,64258.0,0.86382837]
[1721395535157,0.01883,64259.0,64258.0,1.31477337]
[1721395536108,0.01883,64259.0,64258.0,1.00352837]
[1721395537303,0.01883,64259.0,64258.0,0.00854158]
[1721395537757,0.021624,64259.0,64253.0,0.155634]
[1721395538010,0.021624,64259.0,64251.0,0.07717479]
[1721395538253,0.155627,64256.0,64254.0,0.00850814]
[1721395538490,0.302324,64255.0,64251.0,0.07717479]
[1721395539003,0.146694,64255.0,64252.0,0.00851344]
[1721395539222,0.1439,64255.0,64252.0,0.00851344]
[1721395539450,0.002794,64254.0,64252.0,0.00851344]
[1721395539684,0.01883,64259.0,64252.0,0.00851344]
[1721395539685,0.002794,64258.0,64253.0,0.374468]
[1721395540190,0.002794,64258.0,64254.0,0.164154]
[1721395540440,0.002794,64258.0,64255.0,0.155629]
[1721395540668,0.01183,64259.0,64254.0,0.008523]
[1721395540963,0.01183,64259.0,64258.0,0.07717479]
[1721395541266,0.00083,64259.0,64258.0,0.07717479]
[1721395541468,0.00083,64259.0,64258.0,0.08568357]
[1721395541714,0.14123,64259.0,64258.0,0.07717479]
[1721395541961,0.68715536,64259.0,64258.0,0.07717479]
[1721395542258,0.1404,64251.0,64235.0,0.0649]
[1721395542488,0.155685,64232.0,64231.0,0.5402235]
[1721395542703,0.155685,64232.0,64231.0,0.07717479]
[1721395542952,0.155682,64234.0,64231.0,0.07717479]
[1721395543410,0.155683,64233.0,64231.0,0.07717479]
[1721395544008,0.155683,64233.0,64230.0,0.000913]
[1721395544009,1.228316,64231.0,64230.0,0.000913]
[1721395544221,1.74428711,64231.0,64230.0,0.000913]
[1721395544437,1.72812466,64231.0,64230.0,0.000913]
[1721395545327,1.85819527,64231.0,64230.0,0.000913]
[1721395545746,1.74212466,64231.0,64230.0,0.000913]
[1721395546555,1.72812466,64231.0,64230.0,0.000913]
[1721395546803,1.84419459,64231.0,64230.0,0.000913]
[1721395547065,1.72812466,64231.0,64230.0,0.000913]
[1721395547329,1.84052836,64231.0,64230.0,0.000913]
[1721395547599,1.83129934,64231.0,64230.0,0.000913]
[1721395547849,1.73849625,64231.0,64230.0,0.000913]
[1721395548100,1.75249625,64231.0,64230.0,0.000913]
[1721395548674,1.99968828,64231.0,64230.0,0.000913]
[1721395548932,2.21822182,64231.0,64230.0,0.000913]
[1721395549167,2.33425393,64231.0,64230.0,0.000913]
[1721395549452,2.33425393,64231.0,64227.0,0.009185]
[1721395549453,0.155695,64228.0,64227.0,0.009185]
[1721395549718,1.70151675,64228.0,64227.0,0.009185]
[1721395549981,2.48008702,64228.0,64227.0,0.009185]
[1721395550275,0.1384,64226.0,64207.0,0.023826]
[1721395550542,0.829187,64214.0,64207.0,0.023826]
[1721395550783,1.29502674,64214.0,64207.0,0.023826]
[1721395551956,0.98356874,64214.0,64207.0,0.023826]
[1721395552157,0.98356874,64214.0,64213.0,0.004174]
[1721395552362,0.98856874,64214.0,64213.0,0.004174]
[1721395553028,1.00056874,64214.0,64213.0,0.004174]
[1721395553649,1.31202674,64214.0,64213.0,0.004174]
[1721395553856,1.41202674,64214.0,64213.0,0.004174]
[1721395554483,1.42002674,64214.0,64213.0,0.004174]
[1721395554693,1.40302674,64214.0,64213.0,0.004174]
[1721395555110,1.40902674,64214.0,64213.0,0.004174]
[1721395555312,1.89783431,64214.0,64213.0,0.004174]
[1721395555551,1.44602674,64214.0,64213.0,0.004174]
[1721395555685,1.48256117,64214.0,64213.0,0.004174]
[1721395555912,1.11156874,64214.0,64213.0,0.004174]
[1721395556442,0.028,64214.0,64213.0,0.004174]
[1721395556617,0.158514,64218.0,64213.0,0.004174]
[1721395556828,0.15438174,64217.0,64213.0,0.004174]
[1721395557047,0.002794,64216.0,64213.0,0.004174]
[1721395557283,0.15717574,64216.0,64214.0,0.07717479]
[1721395557754,0.15717574,64216.0,64214.0,0.15847479]
[1721395557755,0.002794,64216.0,64214.0,0.15847479]
[1721395558008,0.221394,64232.0,64222.0,0.311417]
[1721395558225,0.079,64236.0,64228.0,0.07717479]
[1721395558452,0.15438174,64235.0,64232.0,0.155684]
[1721395558677,0.15438174,64235.0,64230.0,0.31138]
[1721395558678,0.15438174,64235.0,64229.0,0.00872058]
[1721395558890,0.15438174,64235.0,64233.0,0.00621011]
[1721395559107,0.15438174,64235.0,64234.0,0.00620821]
[1721395559347,0.15438174,64235.0,64229.0,0.155691]
[1721395559547,0.15438174,64235.0,64234.0,0.00620821]
[1721395559744,0.15438174,64235.0,64229.0,0.155691]
[1721395559745,0.37798174,64235.0,64229.0,0.155691]
[1721395560005,0.37798174,64235.0,64234.0,0.00620169]
[1721395560259,0.15438174,64235.0,64229.0,0.155691]
[1721395560472,0.1,64234.0,64229.0,0.155691]
[1721395561189,0.1,64234.0,64230.0,0.15569]
[1721395561401,0.2797,64232.0,64217.0,0.311439]
[1721395561611,0.31007174,64231.0,64223.0,0.23567579]
[1721395561846,0.31007174,64231.0,64223.0,0.23288179]
[1721395562266,0.15438174,64231.0,64223.0,0.07717479]
[1721395562477,0.15438174,64231.0,64223.0,0.38858679]
[1721395563124,0.16838174,64231.0,64224.0,0.311409]
[1721395563334,0.16838174,64231.0,64227.0,0.155695]
[1721395563935,0.16838174,64231.0,64225.0,0.3114]
[1721395564145,0.16838174,64231.0,64230.0,0.07717479]
[1721395564343,0.18238174,64231.0,64230.0,0.07717479]
[1721395564758,0.19963609,64231.0,64230.0,0.07717479]
[1721395564955,0.21363609,64231.0,64230.0,0.07717479]
[1721395565597,0.19638174,64231.0,64230.0,0.07717479]
[1721395565788,0.21363627,64231.0,64230.0,0.07717479]
[1721395566161,0.22763627,64231.0,64230.0,0.07717479]
[1721395567038,0.07325453,64231.0,64230.0,0.07717479]
[1721395567180,0.07325453,64231.0,64230.0,0.23286479]
[1721395567181,0.042,64231.0,64230.0,0.23286479]
[1721395567387,0.07326572,64231.0,64230.0,0.23906092]
[1721395568541,0.042,64231.0,64230.0,0.23906092]
[1721395568741,0.07332687,64231.0,64230.0,0.23906092]
[1721395569149,0.07332425,64231.0,64230.0,0.23906092]
[1721395570720,0.05932425,64231.0,64230.0,0.23906092]
[1721395571086,0.07332425,64231.0,64230.0,0.23906092]
[1721395571717,0.042,64231.0,64230.0,0.23906092]
[1721395572047,0.53381046,64231.0,64230.0,0.00619613]
[1721395572267,0.72446353,64231.0,64211.0,0.0656]
[1721395572499,0.72446353,64231.0,64202.0,0.311514]
[1721395572500,0.231822,64217.0,64202.0,0.311514]
[1721395572710,0.231822,64217.0,64201.0,0.15576]
[1721395572711,1.32550418,64217.0,64201.0,0.15576]
[1721395572917,1.71607312,64217.0,64203.0,0.23292879]
[1721395573886,1.99577312,64217.0,64203.0,0.23292879]
[1721395574285,2.12312669,64217.0,64203.0,0.07717479]
[1721395574691,2.12374177,64217.0,64203.0,0.07717479]
[1721395575361,2.13774177,64217.0,64203.0,0.07717479]
[1721395575572,2.14674177,64217.0,64203.0,0.07717479]
[1721395575777,2.45818577,64217.0,64199.0,0.009174]
[1721395575979,2.58098046,64217.0,64199.0,0.009174]
[1721395576389,2.56698046,64217.0,64199.0,0.009174]
[1721395577137,2.58098046,64217.0,64199.0,0.009174]
[1721395577335,2.56698046,64217.0,64199.0,0.009174]
[1721395577673,2.5013112,64217.0,64199.0,0.009174]
[1721395577883,2.15619857,64217.0,64203.0,0.07717479]
[1721395578083,2.03336052,64217.0,64203.0,0.07717479]
[1721395578522,1.40147252,64217.0,64203.0,0.15887479]
[1721395578890,1.72691652,64217.0,64204.0,0.155752]
[1721395579299,1.71291652,64217.0,64204.0,0.155752]
[1721395579505,1.83387716,64217.0,64204.0,0.155752]
[1721395579704,1.83387716,64217.0,64207.0,0.17957]
[1721395579705,1.68491652,64217.0,64207.0,0.17957]
[1721395579929,1.63297953,64217.0,64207.0,0.17957]
[1721395580094,1.25943553,64217.0,64207.0,0.335313]
[1721395580291,1.25943553,64217.0,64207.0,0.023826]
[1721395580573,1.25943553,64217.0,64207.0,0.179572]
[1721395580718,1.19376775,64217.0,64208.0,0.155743]
[1721395580909,1.27453484,64217.0,64208.0,0.155743]
[1721395581458,1.28853484,64217.0,64208.0,0.155743]
[1721395581672,0.22830934,64217.0,64216.0,0.232837]
[1721395581815,0.07344917,64217.0,64216.0,0.293237]
[1721395582027,0.05948152,64217.0,64216.0,0.2994977]
[1721395582575,0.07348152,64217.0,64216.0,0.2994977]
[1721395583150,0.03148152,64217.0,64216.0,0.2994977]
[1721395583518,0.04548152,64217.0,64216.0,0.6109457]
[1721395583914,0.014,64217.0,64216.0,0.6109457]
[1721395584332,0.04547179,64217.0,64216.0,0.6109457]
[1721395584547,0.05947179,64217.0,64216.0,0.6109457]
[1721395585201,0.05947179,64217.0,64216.0,0.9223937]
[1721395585806,0.05947179,64217.0,64216.0,0.6109457]
[1721395587024,0.028,64217.0,64216.0,0.6109457]
[1721395587219,0.05944613,64217.0,64216.0,0.9223937]
[1721395587687,0.05944613,64217.0,64216.0,0.6109457]
[1721395588211,0.05944613,64217.0,64216.0,0.1437737]
[1721395588405,0.05944613,64217.0,64216.0,0.0675737]
[1721395588636,0.21516813,64217.0,64216.0,0.0071737]
[1721395588838,0.05944613,64217.0,64216.0,0.0071737]
[1721395589231,0.29431839,64217.0,64216.0,0.0071737]
[1721395589501,0.36971843,64217.0,64216.0,0.0071737]
[1721395590170,0.60575286,64217.0,64216.0,0.0071737]
[1721395590375,0.68118391,64217.0,64216.0,0.0071737]
[1721395590586,0.68118391,64217.0,64216.0,0.000913]
[1721395590807,0.72957129,64217.0,64216.0,5e-08]
[1721395591014,1.50684103,64217.0,64216.0,5e-08]
[1721395591212,1.32877773,64217.0,64216.0,5e-08]
[1721395591458,1.62400073,64217.0,64216.0,5e-08]
[1721395591696,1.77020073,64217.0,64216.0,5e-08]
[1721395592207,1.75620073,64217.0,64216.0,5e-08]
[1721395592439,1.77020073,64217.0,64216.0,5e-08]
[1721395592672,1.75620073,64217.0,64216.0,5e-08]
[1721395592914,1.74220073,64217.0,64216.0,5e-08]
[1721395593161,1.208742,64217.0,64216.0,5e-08]
[1721395593428,1.31257006,64217.0,64216.0,5e-08]
[1721395593677,1.140142,64217.0,64216.0,5e-08]
[1721395593895,1.30931459,64217.0,64216.0,5e-08]
[1721395594315,1.32331459,64217.0,64216.0,5e-08]
[1721395594520,1.78910816,64217.0,64216.0,5e-08]
[1721395594973,1.88830816,64217.0,64216.0,5e-08]
[1721395595427,1.70595859,64217.0,64216.0,5e-08]
[1721395595782,1.69695859,64217.0,64216.0,5e-08]
[1721395596020,1.71095859,64217.0,64216.0,5e-08]
[1721395596445,1.52738618,64217.0,64216.0,5e-08]
[1721395596659,1.71109997,64217.0,64216.0,5e-08]
[1721395596862,2.00485276,64217.0,64216.0,5e-08]
[1721395597114,1.99085276,64217.0,64216.0,5e-08]
[1721395597402,2.12415706,64217.0,64216.0,5e-08]
[1721395597611,2.13815706,64217.0,64216.0,5e-08]
[1721395597849,2.20245706,64217.0,64216.0,5e-08]
[1721395598062,2.52790106,64217.0,64216.0,5e-08]
[1721395598283,2.68472969,64217.0,64216.0,5e-08]
[1721395598489,2.52790106,64217.0,64216.0,5e-08]
[1721395598917,1.401561,64214.0,64213.0,0.004174]
[1721395599137,2.26601533,64214.0,64213.0,0.004174]
[1721395599553,2.26181719,64214.0,64213.0,0.004174]
[1721395600133,2.54161719,64214.0,64213.0,0.004174]
[1721395600518,2.55561719,64214.0,64213.0,0.004174]
[1721395601769,2.40126762,64214.0,64213.0,0.004174]
[1721395602458,2.41526762,64214.0,64213.0,0.004174]
[1721395602664,2.2312576,64214.0,64213.0,0.004174]
[1721395602884,2.41535039,64214.0,64213.0,0.004174]
[1721395604232,2.35955039,64214.0,64213.0,0.004174]
[1721395605272,2.51389996,64214.0,64213.0,0.004174]
[1721395605943,2.51389996,64214.0,64207.0,0.023826]
[1721395605944,1.42371155,64214.0,64211.0,0.07717479]
[1721395606144,0.155734,64212.0,64211.0,0.07717479]
[1721395606327,1.48457398,64212.0,64211.0,0.07717479]
[1721395606584,1.79604198,64212.0,64211.0,0.07717479]
[1721395606781,1.86709607,64212.0,64211.0,0.07717479]
[1721395606898,1.79605502,64212.0,64211.0,0.07717479]
[1721395607294,1.77305502,64212.0,64211.0,0.07717479]
[1721395607497,1.77305502,64212.0,64211.0,0.13727479]
[1721395607498,1.27704608,64212.0,64211.0,0.13727479]
[1721395607701,1.38598293,64212.0,64211.0,0.13727479]
[1721395607902,1.27704608,64212.0,64211.0,0.13727479]
[1721395608099,1.29104608,64212.0,64211.0,0.13727479]
[1721395608606,0.97957808,64212.0,64211.0,0.13727479]
[1721395608849,0.97927108,64212.0,64211.0,0.13727479]
[1721395609062,0.99327108,64212.0,64211.0,0.13727479]
[1721395612125,0.99326005,64212.0,64211.0,0.13727479]
[1721395612548,1.30472805,64212.0,64211.0,0.13727479]
[1721395612752,1.30472805,64212.0,64211.0,0.0601]
[1721395614276,1.44426705,64212.0,64211.0,0.0601]
[1721395614881,1.44426705,64212.0,64207.0,0.08130612]
[1721395614882,0.46723,64208.0,64207.0,0.14600612]
[1721395615079,1.20472479,64208.0,64207.0,0.06470612]
[1721395615360,1.32503575,64208.0,64207.0,0.06470612]
[1721395615837,1.28387505,64208.0,64207.0,0.06470612]
[1721395616041,1.28387505,64208.0,64207.0,6.12e-06]
[1721395616180,1.42341405,64208.0,64207.0,6.12e-06]
[1721395616417,1.4613992,64208.0,64207.0,6.12e-06]
[1721395617184,1.4753992,64208.0,64207.0,6.12e-06]
[1721395617426,2.16523577,64208.0,64207.0,6.12e-06]
[1721395618270,1.91626253,64208.0,64207.0,6.12e-06]
[1721395618476,2.17975371,64208.0,64207.0,6.12e-06]
[1721395618888,2.17976385,64208.0,64207.0,6.12e-06]
[1721395620604,2.18984838,64208.0,64207.0,6.12e-06]
[1721395621014,1.07353292,64208.0,64207.0,6.12e-06]
[1721395621163,1.07353292,64208.0,64207.0,0.08240612]
[1721395621164,1.25975711,64208.0,64207.0,0.08240612]
[1721395621367,1.32589885,64208.0,64207.0,0.08240612]
[1721395621578,1.63738585,64208.0,64207.0,6.12e-06]
[1721395621966,1.3214551,64208.0,64207.0,6.12e-06]
[1721395622162,1.39085998,64208.0,64207.0,6.12e-06]
[1721395623206,1.32165384,64208.0,64207.0,6.12e-06]
[1721395623721,1.21207008,64208.0,64207.0,6.12e-06]
[1721395623934,1.32124229,64208.0,64207.0,6.12e-06]
[1721395624326,0.35112204,64208.0,64207.0,6.12e-06]
[1721395624556,0.34103751,64208.0,64207.0,0.29935212]
[1721395624782,0.26213732,64208.0,64207.0,0.30902902]
[1721395625004,0.26213732,64208.0,64207.0,0.15328302]
[1721395625005,0.34703175,64208.0,64207.0,0.15328302]
[1721395625230,0.34703175,64208.0,64207.0,0.15650865]